bitfinex/quotes_BTCUSD_20250615
["timestamp","ask_amount","ask_price","bid_price","bid_amount"]
[1749987461659,0.53022256,105140.0,105130.0,0.3946801]
[1749987462080,0.53022256,105140.0,105130.0,0.20443945]
[1749987463791,0.53022256,105140.0,105130.0,0.19492742]
[1749987473826,0.54622256,105140.0,105130.0,0.04128742]
[1749987474036,0.54622256,105140.0,105130.0,0.19496742]
[1749987474473,0.53022256,105140.0,105130.0,0.19496742]
[1749987475781,0.54622256,105140.0,105130.0,0.19496742]
[1749987476935,0.53022256,105140.0,105130.0,0.19496742]
[1749987481943,0.19022256,105140.0,105130.0,0.19496742]
[1749987488292,0.19022256,105140.0,105130.0,0.04128742]
[1749987488495,0.56222256,105140.0,105130.0,0.04136742]
[1749987497542,0.56222256,105140.0,105130.0,0.00204742]
[1749987498391,0.65846432,105140.0,105130.0,0.00204742]
[1749987502795,0.81242432,105140.0,105130.0,0.00204742]
[1749987503909,0.81242432,105140.0,105130.0,0.00104742]
[1749987504117,0.81242432,105140.0,105130.0,4.742e-05]
[1749987504337,0.84688947,105140.0,105130.0,4.742e-05]
[1749987505816,0.81842432,105140.0,105130.0,4.742e-05]
[1749987506020,0.84688947,105140.0,105130.0,4.742e-05]
[1749987506440,0.81842432,105140.0,105130.0,4.742e-05]
[1749987509683,0.81835279,105140.0,105130.0,4.742e-05]
[1749987509870,0.81804189,105140.0,105130.0,4.742e-05]
[1749987510319,0.81797283,105140.0,105130.0,4.742e-05]
[1749987515711,0.84643798,105140.0,105130.0,4.742e-05]
[1749987518922,0.83013798,105140.0,105130.0,4.742e-05]
[1749987521018,0.85873098,105140.0,105130.0,4.742e-05]
[1749987522956,0.84303098,105140.0,105130.0,4.742e-05]
[1749987527465,0.68907098,105140.0,105130.0,4.742e-05]
[1749987527686,0.84299098,105140.0,105130.0,4.742e-05]
[1749987532733,0.88095641,105140.0,105130.0,4.742e-05]
[1749987534110,0.84299098,105140.0,105130.0,4.742e-05]
[1749987534749,0.88095641,105140.0,105130.0,4.742e-05]
[1749987536423,0.84299098,105140.0,105130.0,4.742e-05]
[1749987541263,0.89595641,105140.0,105130.0,4.742e-05]
[1749987542100,0.85799098,105140.0,105130.0,4.742e-05]
[1749987542306,0.89595641,105140.0,105130.0,4.742e-05]
[1749987543155,0.91195641,105140.0,105130.0,4.742e-05]
[1749987546136,0.88349126,105140.0,105130.0,4.742e-05]
[1749987548708,0.91195242,105140.0,105130.0,4.742e-05]
[1749987549360,0.88349126,105140.0,105130.0,4.742e-05]
[1749987549570,0.9119524,105140.0,105130.0,4.742e-05]
[1749987550427,0.88349126,105140.0,105130.0,4.742e-05]
[1749987550623,0.91195069,105140.0,105130.0,4.742e-05]
[1749987552108,0.89595069,105140.0,105130.0,4.742e-05]
[1749987552599,0.68906526,105140.0,105130.0,4.742e-05]
[1749987552821,0.84290526,105140.0,105130.0,0.03154742]
[1749987555921,0.68906526,105140.0,105130.0,0.03154742]
[1749987556186,0.84290526,105140.0,105130.0,0.03154742]
[1749987557463,0.68906526,105140.0,105130.0,0.03154742]
[1749987557686,0.84290526,105140.0,105130.0,0.03154742]
[1749987561979,0.84302526,105140.0,105130.0,0.03154742]
[1749987564327,0.5928235,105140.0,105130.0,0.03154742]
[1749987564589,0.5642305,105140.0,105130.0,0.03154742]
[1749987564814,0.54528165,105140.0,105130.0,0.03154742]
[1749987565057,0.53577107,105140.0,105130.0,0.03154742]
[1749987565284,0.53577107,105140.0,105130.0,0.06604319]
[1749987566143,0.53577107,105140.0,105130.0,0.03154742]
[1749987569632,0.53577107,105140.0,105130.0,0.07090742]
[1749987597941,0.53377107,105140.0,105130.0,0.07090742]
[1749987598151,0.52977107,105140.0,105130.0,0.03154742]
[1749987598616,0.53077107,105140.0,105130.0,0.07090742]
[1749987598930,0.53077107,105140.0,105130.0,0.03154742]
[1749987599139,0.53077107,105140.0,105130.0,0.07090742]
[1749987601267,0.52974746,105140.0,105130.0,0.07090742]
[1749987602134,0.52974746,105140.0,105130.0,0.11620496]
[1749987604963,0.52974746,105140.0,105130.0,0.07090742]
[1749987614506,0.53925858,105140.0,105130.0,0.2706601]
[1749987614962,0.53925858,105140.0,105130.0,0.28017204]
[1749987618984,0.53925858,105140.0,105130.0,0.28968389]
[1749987619203,0.53925858,105140.0,105130.0,0.29919565]
[1749987620260,0.53925858,105140.0,105130.0,0.28968389]
[1749987621082,0.52974746,105140.0,105130.0,0.34449349]
[1749987621306,0.52974746,105140.0,105130.0,0.35400534]
[1749987624081,0.52974746,105140.0,105130.0,0.28968389]
[1749987625412,0.52974746,105140.0,105130.0,0.28017204]
[1749987627810,0.52974746,105140.0,105130.0,0.28968389]
[1749987628891,0.52974746,105140.0,105130.0,0.07090742]
[1749987632301,0.52974746,105140.0,105130.0,0.03154742]
[1749987632522,0.52974746,105140.0,105130.0,0.22446742]
[1749987633414,0.52974746,105140.0,105130.0,0.03932742]
[1749987634517,0.56044746,105140.0,105130.0,0.03932742]
[1749987635418,0.56044746,105140.0,105130.0,4.742e-05]
[1749987635642,0.76958066,105140.0,105130.0,4.742e-05]
[1749987635859,0.83878865,105140.0,105130.0,4.742e-05]
[1749987636086,0.87675408,105140.0,105130.0,4.742e-05]
[1749987636522,0.83878865,105140.0,105130.0,4.742e-05]
[1749987636952,0.86305896,105140.0,105130.0,4.742e-05]
[1749987637193,0.83878865,105140.0,105130.0,4.742e-05]
[1749987641862,0.83778865,105140.0,105130.0,4.742e-05]
[1749987642077,0.83978865,105140.0,105130.0,4.742e-05]
[1749987642312,0.84378865,105140.0,105130.0,4.742e-05]
[1749987642791,0.88175408,105140.0,105130.0,4.742e-05]
[1749987643497,0.89629493,105140.0,105130.0,4.742e-05]
[1749987644927,0.92489293,105140.0,105130.0,4.742e-05]
[1749987645405,0.8964335,105140.0,105130.0,4.742e-05]
[1749987646819,0.9464335,105140.0,105130.0,4.742e-05]
[1749987647536,0.82120321,105140.0,105130.0,4.742e-05]
[1749987647783,0.97296321,105140.0,105130.0,4.742e-05]
[1749987648012,1.00150164,105140.0,105130.0,4.742e-05]
[1749987648324,1.00050164,105140.0,105130.0,4.742e-05]
[1749987648552,1.00550164,105140.0,105130.0,0.00104742]
[1749987649014,0.99096079,105140.0,105130.0,0.00104742]
[1749987649248,1.00550164,105140.0,105130.0,0.00104742]
[1749987650666,0.9485535,105140.0,105130.0,0.00104742]
[1749987651310,1.00550164,105140.0,105130.0,0.00104742]
[1749987652939,0.5493039,105110.0,105100.0,0.14650936]
[1749987653140,0.5493039,105110.0,105100.0,0.10733163]
[1749987653358,0.5493039,105110.0,105100.0,0.12519241]
[1749987653728,0.5493039,105110.0,105100.0,0.12519243]
[1749987654371,0.5493039,105110.0,105100.0,0.10933163]
[1749987654639,0.5503039,105110.0,105100.0,0.13119243]
[1749987654840,0.5503039,105110.0,105100.0,0.12519256]
[1749987655011,0.5503039,105110.0,105100.0,0.11033163]
[1749987655214,0.5503039,105110.0,105100.0,0.03474227]
[1749987657352,0.5503039,105110.0,105100.0,0.00314227]
[1749987657353,0.57857857,105110.0,105100.0,0.00314227]
[1749987658018,0.57857857,105110.0,105100.0,0.02100387]
[1749987658245,0.57857857,105110.0,105100.0,0.00314227]
[1749987658489,0.57857857,105110.0,105100.0,0.02100387]
[1749987658736,0.57857857,105110.0,105100.0,0.02100394]
[1749987659642,0.57857857,105110.0,105100.0,0.00314227]
[1749987659867,0.57857857,105110.0,105100.0,0.02100394]
[1749987660110,0.57857857,105110.0,105100.0,0.02100386]
[1749987660338,0.67482033,105110.0,105100.0,0.00314227]
[1749987660566,0.68982033,105110.0,105100.0,0.02100427]
[1749987660803,0.67482033,105110.0,105100.0,0.00314227]
[1749987661043,0.85722133,105110.0,105100.0,0.01207382]
[1749987661259,0.85722133,105110.0,105100.0,0.00314227]
[1749987661981,0.85722133,105110.0,105100.0,0.02100524]
[1749987661982,0.87342133,105110.0,105100.0,0.02100524]
[1749987662238,0.88932133,105110.0,105100.0,0.02100537]
[1749987662444,0.88932133,105110.0,105100.0,0.02993693]
[1749987662663,0.88932133,105110.0,105100.0,0.02100538]
[1749987662881,0.88932133,105110.0,105100.0,0.01207382]
[1749987663072,0.88932133,105110.0,105100.0,0.00314227]
[1749987663298,0.88932133,105110.0,105100.0,0.02993695]
[1749987663743,0.88932133,105110.0,105100.0,0.00314227]
[1749987663957,0.88932133,105110.0,105100.0,0.0210054]
[1749987664175,0.88932133,105110.0,105100.0,0.02100539]
[1749987664439,0.88932133,105110.0,105100.0,0.03886854]
[1749987664671,0.88932133,105110.0,105100.0,0.0210054]
[1749987664908,0.88932133,105110.0,105100.0,0.02993697]
[1749987665546,0.88932133,105110.0,105100.0,0.01207383]
[1749987665766,0.73552133,105110.0,105100.0,0.01207383]
[1749987665984,0.85750133,105110.0,105100.0,0.01207383]
[1749987666205,0.70342133,105110.0,105100.0,0.01207383]
[1749987666407,0.85746133,105110.0,105100.0,0.02993697]
[1749987666877,0.85746133,105110.0,105100.0,0.02993692]
[1749987668434,0.85746133,105110.0,105100.0,0.01207383]
[1749987668643,0.85746133,105110.0,105100.0,0.02993692]
[1749987668862,0.85746133,105110.0,105100.0,0.02993691]
[1749987670396,0.85746133,105110.0,105100.0,0.02993687]
[1749987670605,0.85746133,105110.0,105100.0,0.01207383]
[1749987671259,0.85746133,105110.0,105100.0,0.02993687]
[1749987671485,0.88584709,105110.0,105100.0,0.01207383]
[1749987671691,0.88584709,105110.0,105100.0,0.02993687]
[1749987672031,0.90104709,105110.0,105100.0,0.01207383]
[1749987672228,0.90104709,105110.0,105100.0,0.02993693]
[1749987672439,0.90104709,105110.0,105100.0,0.01207383]
[1749987672640,0.90104709,105110.0,105100.0,0.02993694]
[1749987672828,0.90104709,105110.0,105100.0,0.01207383]
[1749987673024,0.90104709,105110.0,105100.0,0.02993694]
[1749987673459,0.90104709,105110.0,105100.0,0.01207383]
[1749987673666,0.90104709,105110.0,105100.0,0.02993694]
[1749987673876,0.90104709,105110.0,105100.0,0.01207383]
[1749987674073,0.90104709,105110.0,105100.0,0.02993694]
[1749987674516,0.90104709,105110.0,105100.0,0.01207383]
[1749987674680,0.90104709,105110.0,105100.0,0.02993694]
[1749987675289,0.90104709,105110.0,105100.0,0.04780005]
[1749987675632,0.90104709,105110.0,105100.0,0.04780007]
[1749987675833,0.91694709,105110.0,105100.0,0.04780007]
[1749987676038,0.91694709,105110.0,105100.0,0.02993694]
[1749987676584,0.91694709,105110.0,105100.0,0.02893694]
[1749987676794,0.91594709,105110.0,105100.0,0.02693694]
[1749987677204,0.91694709,105110.0,105100.0,0.02893694]
[1749987677458,0.76290709,105110.0,105100.0,0.02893694]
[1749987677643,0.91706709,105110.0,105100.0,0.02893694]
[1749987678052,1.40976709,105110.0,105100.0,0.02893694]
[1749987678623,1.44773252,105110.0,105100.0,0.02893694]
[1749987679921,0.53980951,105100.0,105090.0,0.0040766]
[1749987680132,0.79017127,105100.0,105090.0,0.00412413]
[1749987680570,0.84716203,105100.0,105090.0,0.00412413]
[1749987680779,0.85213566,105100.0,105090.0,0.00412413]
[1749987681192,0.85213566,105100.0,105090.0,0.00612413]
[1749987681405,0.85313566,105100.0,105090.0,0.00812413]
[1749987682799,0.85313566,105100.0,105090.0,0.00612413]
[1749987684868,1.02999893,105100.0,105090.0,0.00612413]
[1749987685978,1.04559893,105100.0,105090.0,0.00612413]
[1749987686451,0.87587893,105100.0,105090.0,0.03832413]
[1749987686665,1.03007893,105100.0,105090.0,0.03832413]
[1749987686881,0.87587893,105100.0,105090.0,0.03832413]
[1749987687098,1.03007893,105100.0,105090.0,0.03832413]
[1749987691893,1.03007893,105100.0,105090.0,0.05618804]
[1749987692105,1.03007893,105100.0,105090.0,0.03832413]
[1749987692316,1.03007893,105100.0,105090.0,0.05618806]
[1749987692525,1.03007893,105100.0,105090.0,0.03832413]
[1749987692732,1.03007893,105100.0,105090.0,0.00612413]
[1749987695607,1.06804436,105100.0,105090.0,0.00612413]
[1749987697380,1.06844436,105100.0,105090.0,0.00612413]
[1749987700017,0.93415717,105100.0,105090.0,0.03902413]
[1749987700308,0.90577141,105100.0,105090.0,0.03902413]
[1749987700559,0.87740641,105100.0,105090.0,0.03902413]
[1749987701256,0.72264641,105100.0,105090.0,0.03902413]
[1749987701497,0.87740641,105100.0,105090.0,0.03902413]
[1749987703842,0.72264641,105100.0,105090.0,0.03902413]
[1749987704078,0.87736641,105100.0,105090.0,0.03902413]
[1749987705955,0.87732641,105100.0,105090.0,0.03902413]
[1749987707486,0.72264641,105100.0,105090.0,0.03902413]
[1749987707705,0.87728641,105100.0,105090.0,0.03902413]
[1749987729388,0.90575153,105100.0,105090.0,0.03902413]
[1749987737624,0.90555153,105100.0,105090.0,0.03902413]
[1749987738304,0.87708641,105100.0,105090.0,0.03902413]
[1749987739492,0.72264641,105100.0,105090.0,0.03902413]
[1749987740210,0.37767278,105100.0,105090.0,0.03902413]
[1749987741098,0.71767278,105100.0,105090.0,0.03902413]
[1749987745222,0.54080951,105100.0,105090.0,0.03902413]
[1749987748834,0.54080951,105100.0,105090.0,0.0478542]
[1749987750582,0.54080951,105100.0,105090.0,0.03902413]
[1749987751654,0.69524951,105100.0,105090.0,0.03902413]
[1749987767466,0.54080951,105100.0,105090.0,0.03902413]
[1749987783457,0.19980951,105100.0,105090.0,0.03902413]
[1749987784133,0.19980951,105100.0,105090.0,0.00612413]
[1749987801397,0.19980951,105100.0,105090.0,0.02112413]
[1749987801634,0.19980951,105100.0,105090.0,0.03752413]
[1749987810283,0.19980951,105100.0,105090.0,0.04523654]
[1749987810526,0.19980951,105100.0,105090.0,0.23735266]
[1749987810736,0.21883872,105100.0,105090.0,0.36217024]
[1749987810954,0.21883872,105100.0,105090.0,0.37168544]
[1749987811180,0.1997906,105110.0,105100.0,0.04091474]
[1749987811402,0.20930371,105110.0,105100.0,0.38460017]
[1749987811592,0.21881755,105110.0,105100.0,0.38460017]
[1749987812056,0.22833121,105110.0,105100.0,0.39411437]
[1749987812489,0.2188181,105110.0,105100.0,0.38460017]
[1749987812710,0.2198181,105110.0,105100.0,0.38660017]
[1749987813646,0.2198181,105110.0,105100.0,0.37708588]
[1749987814084,0.20930444,105110.0,105100.0,0.38460017]
[1749987814293,0.21030444,105110.0,105100.0,0.38860017]
[1749987814503,0.21030444,105110.0,105100.0,0.39811437]
[1749987814950,0.21030444,105110.0,105100.0,0.38860017]
[1749987818819,0.21030444,105110.0,105100.0,0.36957141]
[1749987819031,0.21030444,105110.0,105100.0,0.57280597]
[1749987819238,0.21030444,105110.0,105100.0,0.57280606]
[1749987820515,0.20079069,105110.0,105100.0,0.36348172]
[1749987821848,0.20079069,105110.0,105100.0,0.57280606]
[1749987822263,0.20079069,105110.0,105100.0,0.58232062]
[1749987824041,0.20079069,105110.0,105100.0,0.57280606]
[1749987825272,0.20079069,105110.0,105100.0,0.57268606]
[1749987828862,0.20079069,105110.0,105100.0,0.59171509]
[1749987829300,0.20079069,105110.0,105100.0,0.60122938]
[1749987829521,0.001,105110.0,105100.0,0.60122884]
[1749987829735,0.02953988,105110.0,105100.0,0.6012283]
[1749987829947,0.02953979,105110.0,105100.0,0.6012283]
[1749987830583,0.02002631,105110.0,105100.0,0.6012283]
[1749987830798,0.02953979,105110.0,105100.0,0.6012283]
[1749987831866,0.03905345,105110.0,105100.0,0.6012283]
[1749987832077,0.03905336,105110.0,105100.0,0.6012283]
[1749987833526,0.02953979,105110.0,105100.0,0.6012283]
[1749987833727,0.03905345,105110.0,105100.0,0.6012283]
[1749987833935,0.02953979,105110.0,105100.0,0.6012283]
[1749987834575,0.21981664,105110.0,105100.0,0.13164176]
[1749987834785,0.21030399,105110.0,105100.0,0.32504176]
[1749987834994,0.21030399,105110.0,105100.0,0.30874176]
[1749987835427,0.21030399,105110.0,105100.0,0.32404176]
[1749987836727,0.21030399,105110.0,105100.0,0.5333661]
[1749987837330,0.21030399,105110.0,105100.0,0.3335565]
[1749987837539,0.20079051,105110.0,105100.0,0.3335565]
[1749987838731,0.19127685,105110.0,105100.0,0.3335565]
[1749987839351,0.19127685,105110.0,105100.0,0.32412176]
[1749987844039,0.19127685,105110.0,105100.0,0.34469956]
[1749987847044,0.19127685,105110.0,105100.0,0.32412176]
[1749987848736,0.19127685,105110.0,105100.0,0.3336365]
[1749987850295,0.02002705,105110.0,105100.0,0.55247459]
[1749987850768,0.02954016,105110.0,105100.0,0.58102257]
[1749987851678,0.22933076,105110.0,105100.0,0.57150846]
[1749987851944,0.22933076,105110.0,105100.0,0.65857185]
[1749987852157,0.22933076,105110.0,105100.0,0.63002387]
[1749987852371,0.22933076,105110.0,105100.0,0.63953816]
[1749987853514,0.21981765,105110.0,105100.0,0.63953816]
[1749987858468,0.21981765,105110.0,105100.0,0.64905236]
[1749987858667,0.0295408,105110.0,105100.0,0.64905173]
[1749987859963,0.21981765,105110.0,105100.0,0.63002342]
[1749987860578,0.21981765,105110.0,105100.0,0.62050913]
[1749987861398,0.21030426,105110.0,105100.0,0.49353136]
[1749987861730,0.21030426,105110.0,105100.0,0.53444592]
[1749987861949,0.21030426,105110.0,105100.0,0.50304592]
[1749987862633,0.21030426,105110.0,105100.0,0.53444592]
[1749987865719,0.21030426,105110.0,105100.0,0.5629898]
[1749987866133,0.21030426,105110.0,105100.0,0.64349088]
[1749987868105,0.21030426,105110.0,105100.0,0.65300535]
[1749987871209,0.21030426,105110.0,105100.0,0.65270303]
[1749987872263,0.2007906,105110.0,105100.0,0.64318856]
[1749987873510,0.19127685,105110.0,105100.0,0.440194]
[1749987873717,0.19127685,105110.0,105100.0,0.633434]
[1749987874346,0.19127685,105110.0,105100.0,0.55293292]
[1749987879269,0.19127685,105110.0,105100.0,0.53693292]
[1749987879890,0.19127685,105110.0,105100.0,0.32172332]
[1749987880506,0.19127685,105110.0,105100.0,0.03254388]
[1749987880704,0.22387685,105110.0,105100.0,0.004]
[1749987881025,0.22387685,105110.0,105100.0,0.19724]
[1749987882067,0.19127685,105110.0,105100.0,0.19724]
[1749987882284,0.19127685,105110.0,105100.0,0.004]
[1749987882429,0.19127685,105110.0,105100.0,0.19736]
[1749987882640,0.20717685,105110.0,105100.0,0.19736]
[1749987883241,0.22327685,105110.0,105100.0,0.19736]
[1749987884227,0.22327685,105110.0,105100.0,0.1974]
[1749987887774,0.22327685,105110.0,105100.0,0.004]
[1749987901109,0.19127685,105110.0,105100.0,0.004]
[1749987902547,0.19127685,105110.0,105100.0,0.0348]
[1749987902990,0.1909918,105110.0,105100.0,0.0348]
[1749987906521,0.1909918,105110.0,105100.0,0.004]
[1749987908783,0.37320205,105120.0,105100.0,0.004]
[1749987908987,0.19027685,105110.0,105100.0,0.004]
[1749987909625,0.19027685,105110.0,105100.0,0.002]
[1749987909839,0.1998096,105100.0,105090.0,0.29448235]
[1749987910063,0.1998096,105100.0,105090.0,0.45744738]
[1749987911166,0.2008096,105100.0,105090.0,0.46044738]
[1749987911664,0.2018096,105100.0,105090.0,0.46644738]
[1749987912583,0.2018096,105100.0,105090.0,0.39972411]
[1749987914037,0.2018096,105100.0,105090.0,0.38069344]
[1749987914246,0.2018096,105100.0,105090.0,0.37117788]
[1749987915697,0.2018096,105100.0,105090.0,0.38069353]
[1749987916287,0.2018096,105100.0,105090.0,0.33466589]
[1749987918589,0.2018096,105100.0,105090.0,0.10936589]
[1749987918791,0.2018096,105100.0,105090.0,0.20632413]
[1749987919412,0.2018096,105100.0,105090.0,0.23782413]
[1749987920245,0.2018096,105100.0,105090.0,0.20632413]
[1749987922307,0.5572096,105100.0,105090.0,0.01312413]
[1749987922516,0.5723096,105100.0,105090.0,0.01312413]
[1749987922733,0.6009116,105100.0,105090.0,0.01312413]
[1749987924723,0.7547516,105100.0,105090.0,0.01312413]
[1749987945368,0.85099336,105100.0,105090.0,0.01312413]
[1749987945583,0.20938358,105070.0,105060.0,0.07056]
[1749987945794,0.20938358,105070.0,105060.0,0.16684927]
[1749987946005,0.20938358,105070.0,105060.0,0.12748927]
[1749987946211,0.20938358,105070.0,105060.0,0.03124751]
[1749987946689,0.20938358,105070.0,105060.0,0.04224751]
[1749987946893,0.23999058,105070.0,105060.0,0.04224751]
[1749987947540,0.21138358,105070.0,105060.0,0.04224751]
[1749987948205,0.21138358,105070.0,105060.0,0.04924751]
[1749987948206,0.21238358,105070.0,105060.0,0.04924751]
[1749987949518,0.20938358,105070.0,105060.0,0.03124751]
[1749987949956,0.21138358,105070.0,105060.0,0.03724751]
[1749987950166,0.23999233,105070.0,105060.0,0.03724751]
[1749987952318,0.25021191,105070.0,105060.0,0.03724751]
[1749987964513,0.25021191,105070.0,105060.0,0.13348927]
[1749987964942,0.2406949,105070.0,105060.0,0.13348927]
[1749987972358,0.2406949,105070.0,105060.0,0.17288927]
[1749987979644,0.2406949,105070.0,105060.0,0.19194927]
[1749987979861,0.2406949,105070.0,105060.0,0.17288927]
[1749988000437,0.2406949,105070.0,105060.0,0.20141916]
[1749988000776,0.2406949,105070.0,105060.0,0.17288927]
[1749988006302,0.2406949,105070.0,105060.0,0.22064576]
[1749988007020,0.2406949,105070.0,105060.0,0.24923056]
[1749988007767,0.2406949,105070.0,105060.0,0.17288927]
[1749988009874,0.21208615,105070.0,105060.0,0.36325667]
[1749988010094,0.21208615,105070.0,105060.0,0.40135965]
[1749988010321,0.21208615,105070.0,105060.0,0.56479765]
[1749988013092,0.01151701,105070.0,105060.0,0.57431538]
[1749988013298,0.04006794,105070.0,105060.0,0.57431538]
[1749988013511,0.04006794,105070.0,105060.0,0.66221725]
[1749988013717,0.04006794,105070.0,105060.0,0.66220024]
[1749988013929,0.04006785,105070.0,105060.0,0.66220024]
[1749988014165,0.03055066,105070.0,105060.0,0.70031331]
[1749988014404,0.03055066,105070.0,105060.0,0.66220024]
[1749988014839,0.02103356,105070.0,105060.0,0.67221622]
[1749988015062,0.01151664,105070.0,105060.0,0.71032929]
[1749988015292,0.02103356,105070.0,105060.0,0.71032929]
[1749988015516,0.01151664,105070.0,105060.0,0.71032929]
[1749988015741,0.02103347,105070.0,105060.0,0.70031331]
[1749988016623,0.01151664,105070.0,105060.0,0.70031331]
[1749988017264,0.02103347,105070.0,105060.0,0.70031331]
[1749988018772,0.01151664,105070.0,105060.0,0.70031331]
[1749988019036,0.002,105070.0,105060.0,0.71485416]
[1749988019249,0.002,105070.0,105060.0,0.68628637]
[1749988019877,0.002,105070.0,105060.0,0.74345598]
[1749988020307,0.002,105070.0,105060.0,1.04534291]
[1749988020539,0.002,105070.0,105060.0,1.16461274]
[1749988020795,0.002,105070.0,105060.0,1.21461274]
[1749988021339,0.001,105070.0,105060.0,1.21261274]
[1749988021626,0.001,105070.0,105060.0,1.23167274]
[1749988022111,0.13314898,105100.0,105090.0,0.25045892]
[1749988022342,0.13315015,105100.0,105090.0,0.53994087]
[1749988022554,0.3234451,105100.0,105090.0,0.53994087]
[1749988023011,0.3139309,105100.0,105090.0,0.53994087]
[1749988023484,0.3139309,105100.0,105090.0,0.55145597]
[1749988023731,0.3149309,105100.0,105090.0,0.55145597]
[1749988023938,0.3149309,105100.0,105090.0,0.55345597]
[1749988025009,0.0755822,105100.0,105090.0,0.63163509]
[1749988025856,0.08509694,105100.0,105090.0,0.6411501]
[1749988026278,0.0949839,105100.0,105090.0,0.6411501]
[1749988027595,0.10449846,105100.0,105090.0,0.6411501]
[1749988027805,0.02991626,105100.0,105090.0,0.6411501]
[1749988028017,0.02991599,105100.0,105090.0,0.6411501]
[1749988028239,0.001,105100.0,105090.0,0.6411501]
[1749988028672,0.001,105100.0,105090.0,0.65569095]
[1749988028883,0.001,105100.0,105090.0,0.68419491]
[1749988030376,0.04756258,105120.0,105110.0,0.58550162]
[1749988030834,0.04756258,105120.0,105110.0,0.59501482]
[1749988031811,0.04956258,105120.0,105110.0,0.59601482]
[1749988032500,0.05056258,105120.0,105110.0,0.59601482]
[1749988032735,0.05056339,105120.0,105110.0,0.59601482]
[1749988032974,0.23130975,105120.0,105110.0,0.58650162]
[1749988033231,0.041051,105120.0,105110.0,0.58650162]
[1749988033487,0.041051,105120.0,105110.0,0.59601482]
[1749988033747,0.03153807,105120.0,105110.0,0.59601482]
[1749988035862,0.041051,105120.0,105110.0,0.59601482]
[1749988037319,0.23130975,105120.0,105110.0,0.58650162]
[1749988038221,0.041051,105120.0,105110.0,0.59601482]
[1749988039171,0.07628463,105130.0,105110.0,0.59601482]
[1749988039383,0.19025875,105120.0,105110.0,0.27803309]
[1749988039609,0.19025875,105120.0,105110.0,0.57698833]
[1749988039610,0.19977168,105120.0,105110.0,0.57698833]
[1749988040475,0.19977168,105120.0,105110.0,0.58650172]
[1749988040689,0.20928452,105120.0,105110.0,0.59601501]
[1749988041527,0.21879727,105120.0,105110.0,0.59601501]
[1749988042857,0.20928452,105120.0,105110.0,0.13660176]
[1749988043066,0.24208452,105120.0,105110.0,0.29044176]
[1749988043720,0.24208452,105120.0,105110.0,0.09724176]
[1749988043943,0.24208452,105120.0,105110.0,0.001]
[1749988044163,0.24208452,105120.0,105110.0,0.19424]
[1749988045218,0.24208452,105120.0,105110.0,0.04036]
[1749988050210,0.24208452,105120.0,105110.0,0.08261525]
[1749988051475,0.24208452,105120.0,105110.0,0.04036]
[1749988054392,0.05182577,105120.0,105110.0,0.04036]
[1749988054596,0.24208452,105120.0,105110.0,0.04036]
[1749988057751,0.20928452,105120.0,105110.0,0.23063685]
[1749988057964,0.20928452,105120.0,105110.0,0.24966408]
[1749988058179,0.20928452,105120.0,105110.0,0.44855307]
[1749988058180,0.01902541,105120.0,105110.0,0.44855307]
[1749988058389,0.01902541,105120.0,105110.0,0.43903987]
[1749988058618,0.01902541,105120.0,105110.0,0.45806636]
[1749988058822,0.01902478,105120.0,105110.0,0.45806636]
[1749988059246,0.02853753,105120.0,105110.0,0.45806636]
[1749988060721,0.02853744,105120.0,105110.0,0.45806636]
[1749988061784,0.03816364,105120.0,105110.0,0.45806636]
[1749988062450,0.04767639,105120.0,105110.0,0.45806636]
[1749988065027,0.03816364,105120.0,105110.0,0.45806636]
[1749988066283,0.04767639,105120.0,105110.0,0.45806636]
[1749988068527,0.05718923,105120.0,105110.0,0.45806636]
[1749988068718,0.05718923,105120.0,105110.0,0.44855316]
[1749988068925,0.04767693,105120.0,105110.0,0.43903987]
[1749988069649,0.2284232,105120.0,105110.0,0.43904005]
[1749988069852,0.21891054,105120.0,105110.0,0.37680602]
[1749988070166,0.20939779,105120.0,105110.0,0.13660176]
[1749988072013,0.20939779,105120.0,105110.0,0.1461156]
[1749988073244,0.20939779,105120.0,105110.0,0.13660176]
[1749988073891,0.20939779,105120.0,105110.0,0.1461156]
[1749988074465,0.20939779,105120.0,105110.0,0.13660176]
[1749988078856,0.20939779,105120.0,105110.0,0.1461156]
[1749988079265,0.20939779,105120.0,105110.0,0.15562935]
[1749988079472,0.20939779,105120.0,105110.0,0.1461156]
[1749988079679,0.20939779,105120.0,105110.0,0.35541977]
[1749988080201,0.20939779,105120.0,105110.0,0.4169115]
[1749988080787,0.20939779,105120.0,105110.0,0.39513316]
[1749988080993,0.20939779,105120.0,105110.0,0.38561977]
[1749988081650,0.20939779,105120.0,105110.0,0.39513325]
[1749988086061,0.20939779,105120.0,105110.0,0.3761062]
[1749988086314,0.19025875,105120.0,105110.0,0.38561986]
[1749988086557,0.19025875,105120.0,105110.0,0.43291342]
[1749988087287,0.19025875,105120.0,105110.0,0.44242699]
[1749988087500,0.20029982,105120.0,105110.0,0.44242699]
[1749988088832,0.20029982,105120.0,105110.0,0.39319976]
[1749988089309,0.20029982,105120.0,105110.0,0.3459062]
[1749988089558,0.20029982,105120.0,105110.0,0.35541977]
[1749988089791,0.20029982,105120.0,105110.0,0.36493325]
[1749988091072,0.20029982,105120.0,105110.0,0.35541977]
[1749988093952,0.20029982,105120.0,105110.0,0.33639245]
[1749988094781,0.20029982,105120.0,105110.0,0.001]
[1749988094989,0.23169982,105120.0,105110.0,0.1942]
[1749988095229,0.20029982,105120.0,105110.0,0.1942]
[1749988101905,0.20029982,105120.0,105110.0,0.001]
[1749988102135,0.20029982,105120.0,105110.0,0.1942]
[1749988106618,0.20029982,105120.0,105110.0,0.39399069]
[1749988106830,0.20029982,105120.0,105110.0,0.43610444]
[1749988109414,0.20029982,105120.0,105110.0,0.40350444]
[1749988110038,0.20029982,105120.0,105110.0,0.4130181]
[1749988111599,0.20029982,105120.0,105110.0,0.42253167]
[1749988113750,0.20981203,105120.0,105110.0,0.50414113]
[1749988113967,0.21932496,105120.0,105110.0,0.53564049]
[1749988114204,0.03857887,105120.0,105110.0,0.53564049]
[1749988114814,0.0480918,105120.0,105110.0,0.52612729]
[1749988115266,0.22883834,105120.0,105110.0,0.52612729]
[1749988117828,0.22883834,105120.0,105110.0,0.45403122]
[1749988118512,0.03857851,105120.0,105110.0,0.55978572]
[1749988118930,0.03857842,105120.0,105110.0,0.58820136]
[1749988119146,0.03857833,105120.0,105110.0,0.36658572]
[1749988119385,0.03857833,105120.0,105110.0,0.58820136]
[1749988119608,0.04809108,105120.0,105110.0,0.6414358]
[1749988120470,0.05760392,105120.0,105110.0,0.6414358]
[1749988122654,0.24786339,105120.0,105110.0,0.6319226]
[1749988126840,0.23835091,105120.0,105110.0,0.6319226]
[1749988127259,0.23835091,105120.0,105110.0,0.62240931]
[1749988128094,0.23835091,105120.0,105110.0,0.6319226]
[1749988132102,0.03857923,105120.0,105110.0,0.6414358]
[1749988132500,0.04809216,105120.0,105110.0,0.6414358]
[1749988133096,0.04809216,105120.0,105110.0,0.6540818]
[1749988133926,0.00955877,105130.0,105120.0,0.25920903]
[1749988134143,4.747e-05,105130.0,105120.0,0.47503589]
[1749988134362,0.02858174,105130.0,105120.0,0.51304135]
[1749988134592,0.01907016,105130.0,105120.0,0.47503607]